Cogmind - Beta 11 @@@ ROGUE MODE // 2022.04.17 @ 12:49:25 Player: 3.14 Result: Self-destructed Performance ------------- Evolutions (6) 3000 Regions Visited (13) 2600 Robots Destroyed (77) 385 Value Destroyed (2771) 2771 Prototype IDs (28) 560 Alien Tech Used (0) 0 Bonus (226) 226 TOTAL SCORE: 9542 Bonus ------- High Alert Combat Kills 370 Follower Combat Kills 1484 Entered DSFs 1000 Aligned with FarCom 300 Friendly Fire -2928 Cogmind --------- Core Integrity 1067/1150 Matter 255/300 Energy 340/340 System Corruption 0% Temperature Cool (0) Movement Walking (118) Location -4/Factory Parts ------- > --- POWER (2) -------- Improved Deuterium Engine Light Angular Momentum Engine > --- PROPULSION (6) --- Titanium Leg Improved Titanium Leg Flexi-carbon Leg Flexi-carbon Leg Flexi-carbon Leg Advanced VSS Leg > --- UTILITY (7) ------ Advanced Heat Sink Advanced Heat Sink Advanced Cooling System High-capacity Storage Unit Advanced Targeting Computer Improved Utility Shielding Graphene Brace > --- WEAPON (4) ------- Gatling Laser Wave Gun Scythe > --- INVENTORY (20) --- Carbon-fiber Leg Carbon-fiber Leg Carbon-fiber Leg Flexi-carbon Leg Flexi-carbon Leg Advanced Heat Sink Advanced Signal Interpreter Hardened Heavy Armor Plating Advanced Hacking Suite System Restoration Module Gatling Laser Gatling Laser Gatling Laser Gatling Laser Thermic Laser Wave Gun Wave Gun Grenade Launcher Field Lobotomy Kit (3) Peak State ------------ > --- POWER ------------ Improved Deuterium Engine Light Angular Momentum Engine > --- PROPULSION ------- Carbon-fiber Leg Titanium Leg Improved Titanium Leg Flexi-carbon Leg Flexi-carbon Leg Advanced VSS Leg > --- UTILITY ---------- Advanced Heat Sink Advanced Cooling System High-capacity Storage Unit Advanced Targeting Computer Hardened Heavy Armor Plating Graphene Brace > --- WEAPON ----------- Wave Gun Wave Gun Wave Gun Wave Gun > --- INVENTORY -------- Carbon-fiber Leg Flexi-carbon Leg Advanced Signal Interpreter Improved Utility Shielding Medium Reflective Plating Advanced Hacking Suite System Restoration Module Gatling Laser Gatling Laser Gatling Laser Gatling Laser Gatling Laser Thermic Laser Wave Gun Wave Gun Grenade Launcher Field Lobotomy Kit Scythe [Rating: 98] Favorites ----------- Power Ion Engine Engine Ion Engine Propulsion Improved Aluminum Leg Treads Light Treads Leg Improved Aluminum Leg Utility Advanced Heat Sink Device Advanced Heat Sink Storage Large Storage Unit Processor Improved Targeting Computer Hackware System Shield Protection Medium Armor Plating Weapon Gatling Laser Energy Gun Gatling Laser Ballistic Gun Assault Rifle Launcher Grenade Launcher Special Weapon Field Lobotomy Kit Slashing Weapon Scythe Build | -11 -10 -9 -9 -9 -8 -8 -7 -7 -6 -6 -5 -5 -4 ------- Run | Scr Mat Mat Min Exi Min Mat Fac DSF Fac Ext Fac DSF Fac Slots Evolved 12 | . . 2 . . . 2 2 . 2 . 2 . 2 Power 1 | . . . . . . . . . . . . . 1 Propulsion 4 | . . . . . . 1 1 . 1 . 1 . . Utility 5 | . . 1 . . . 1 1 . 1 . 1 . . Weapon 2 | . . 1 . . . . . . . . . . 1 Parts Attached 111 | 7 1 14 8 . 3 9 2 17 14 8 3 8 17 Power 5 | 1 . 1 . . . . . 1 . 1 . . 1 Engine 5 | 1 . 1 . . . . . 1 . 1 . . 1 Core . | . . . . . . . . . . . . . . Reactor . | . . . . . . . . . . . . . . Propulsion 30 | 2 . 3 4 . . 1 1 4 5 2 1 2 5 Treads 7 | 2 . 3 2 . . . . . . . . . . Leg 23 | . . . 2 . . 1 1 4 5 2 1 2 5 Wheel . | . . . . . . . . . . . . . . Hover . | . . . . . . . . . . . . . . Flight . | . . . . . . . . . . . . . . Utility 35 | 2 1 6 . . 1 5 1 3 5 2 1 1 7 Device 15 | . . 2 . . . 1 . 2 3 1 1 1 4 Storage 5 | 2 1 1 . . . . . 1 . . . . . Processor 3 | . . . . . . 1 . . 1 . . . 1 Hackware 1 | . . . . . . 1 . . . . . . . Protection 11 | . . 3 . . 1 2 1 . 1 1 . . 2 Artifact . | . . . . . . . . . . . . . . Weapon 41 | 2 . 4 4 . 2 3 . 9 4 3 1 5 4 Energy Gun 27 | 1 . 2 3 . . 1 . 8 3 1 1 4 3 Energy Cannon . | . . . . . . . . . . . . . . Ballistic Gun 6 | 1 . 1 . . 2 2 . . . . . . . Ballistic Cannon . | . . . . . . . . . . . . . . Launcher 3 | . . 1 1 . . . . . 1 . . . . Special Weapon 2 | . . . . . . . . 1 . . . 1 . Impact Weapon . | . . . . . . . . . . . . . . Slashing Weapon 3 | . . . . . . . . . . 2 . . 1 Piercing Weapon . | . . . . . . . . . . . . . . Special Melee Weapon . | . . . . . . . . . . . . . . Unidentified Prototypes 3 | . . . 1 . . . . . 1 . . . 1 Parts Lost 5 | . . 1 . . . . . 1 . . . . 3 Power 1 | . . 1 . . . . . . . . . . . Propulsion 1 | . . . . . . . . 1 . . . . . Utility 2 | . . . . . . . . . . . . . 2 Weapon 1 | . . . . . . . . . . . . . 1 Highest Loss Streak 2 | . . 1 . . . . . 1 . . . . 2 To Critical Strikes . | . . . . . . . . . . . . . . Average Slot Usage (%) 97 | . 86 92 100 100 100 100 100 100 98 97 94 94 94 Engine 8 | . 14 11 11 11 11 9 7 7 6 6 5 5 10 Treads 3 | . 28 22 5 . . . . . . . . . . Leg 23 | . . . 16 22 22 27 30 30 33 33 35 35 31 Device 11 | . . 8 11 11 11 9 7 11 13 13 17 17 14 Storage 8 | . 15 11 11 11 11 9 7 7 6 6 5 5 5 Processor 4 | . . . . . . 9 7 7 11 10 5 5 5 Protection 8 | . . 8 11 11 11 8 15 10 6 6 5 5 5 Energy Gun 19 | . 14 22 21 22 20 9 7 20 19 19 17 17 20 Ballistic Gun 6 | . 14 8 11 11 12 18 15 1 . . . . . Naked Turns . | . . . . . . . . . . . . . . Heaviest Build 109 | 19 34 38 40 40 40 38 40 67 69 84 84 90 109 Greatest Support 115 | 40 40 40 40 26 26 39 49 55 85 87 102 110 115 Greatest Overweight (x) 1 | . . . 1 1 1 . . 1 1 . . . . Average Overweight (x) . | . . . . 1 1 . . . . . . . . Largest Inventory Capacity 20 | 8 15 15 15 15 15 15 15 20 20 20 20 20 20 Average Capacity 16 | 7 14 15 15 15 15 15 15 16 20 20 20 20 20 Most Carried 20 | 4 8 15 15 15 15 15 15 18 20 20 19 20 20 Average Carried 15 | 2 6 11 14 14 15 14 13 14 19 19 18 19 18 Final Capacity 20 | 8 15 15 15 15 15 15 15 20 20 20 20 20 20 Final Carried 20 | 4 8 15 15 15 15 15 15 18 20 20 18 20 20 Class Distribution -------------------- 34% | Skirmisher 21% | Tank 14% | Scavenger-Skirmisher 10% | Scavenger-Tank 10% | Mutant 5% | Commander-Skirmisher 3% | Scavenger-Mutant Dominant Class ---------------- Mutant | -10/Materials Tank | -9/Materials Tank | -9/Mines Tank | -9/Exiles Skirmisher | -8/Mines Scavenger-Skirmisher | -8/Materials Scavenger-Tank | -7/Factory Scavenger-Skirmisher | -7/DSF Skirmisher | -6/Factory Commander-Skirmisher | -6/Extension Commander-Skirmisher | -5/Factory Scavenger-Tank | -5/DSF Scavenger-Skirmisher | -4/Factory Resources | -11 -10 -9 -9 -9 -8 -8 -7 -7 -6 -6 -5 -5 -4 ----------- Run | Scr Mat Mat Min Exi Min Mat Fac DSF Fac Ext Fac DSF Fac Matter Collected 1544 | 276 . 160 156 . 93 168 . 221 130 100 . 110 130 Remotely . | . . . . . . . . . . . . . . Salvage Created 3768 | 100 . 659 222 . 228 302 . 179 339 876 . 81 782 Parts 149 | 1 . 41 7 . 10 17 . 4 13 32 . 2 22 Haulers Intercepted 4 | . . 1 . . . 2 . . . 1 . . . Recyclers Shooed 6 | . . 2 1 . . 1 . . . 1 . . 1 Parts Field Recycled . | . . . . . . . . . . . . . . Retrieved Matter . | . . . . . . . . . . . . . . Parts Self-Destructed . | . . . . . . . . . . . . . . Prevented . | . . . . . . . . . . . . . . Kills | -11 -10 -9 -9 -9 -8 -8 -7 -7 -6 -6 -5 -5 -4 ------- Run | Scr Mat Mat Min Exi Min Mat Fac DSF Fac Ext Fac DSF Fac Combat Hostiles Destroyed 56 | . . 9 2 . 8 2 . 4 6 15 . 1 9 Guns 50 | . . 9 2 . 8 2 . 4 4 13 . 1 7 Classes Destroyed 14 | 1 . 7 . . . . . 2 1 2 . . 1 Worker 5 | . . 3 . . . 1 . . 1 . . . . Builder 1 | . . . . . . . . . . 1 . . . Tunneler 2 | . . 1 . . . . . . . 1 . . . Hauler 4 | . . 1 . . . 2 . . . 1 . . . Recycler 5 | 1 . 2 . . . 1 . . . . . . 1 Operator 1 | . . 1 . . . . . . . . . . . Swarmer 14 | . . 3 . . 5 . . . . 6 . . . Grunt 21 | . . 2 . . 3 . . 2 4 4 . . 6 Brawler 1 | . . . . . . . . 1 . . . . . Sentry 11 | . . 4 2 . . 2 . . . 2 . . 1 Specialist 2 | . . . . . . . . 1 . . . 1 . Hunter 5 | . . . . . . . . . 2 1 . . 2 Behemoth 2 | . . . . . . . . . . 2 . . . Butcher 1 | . . . . . . . . . . . . . 1 Best Kill Streak 7 | 1 . 7 2 . 4 3 . 3 4 4 . 1 3 Combat Bots Only 6 | . . 6 2 . 4 1 . 3 4 4 . 1 2 Max Kills in Single Turn 3 | 1 . 3 1 . 1 2 . 2 2 3 . 1 2 Gunslinging 1 | . . 1 . . . . . 1 . 1 . . 1 Exploded . | . . . . . . . . . . . . . . Melee . | . . . . . . . . . . . . . . Uniques/NPCs Destroyed 2 | . . . 1 . . . . . . 1 . . . YI-UF0 (-9/Mines) A7 (-6/Extension) Combat | -11 -10 -9 -9 -9 -8 -8 -7 -7 -6 -6 -5 -5 -4 -------- Run | Scr Mat Mat Min Exi Min Mat Fac DSF Fac Ext Fac DSF Fac Damage Taken 3003 | . 87 377 76 . 281 150 . 346 20 513 . 188 965 Core 365 | . 29 74 14 . 23 59 . 30 . 38 . 15 83 Absorbed by Shields 152 | . . . . . . . . . . 152 . . . Regen/Repaired (Parts) 28 | . . 28 . . . . . . . . . . . Core Remaining (%) 91 | 100 88 . . . 72 89 . 95 . 95 . 98 . Volleys Fired 163 | 2 . 32 15 . 18 13 . 12 10 32 . 4 25 Largest 4 | 2 . 3 3 . 3 3 . 3 3 3 . 3 4 Hottest 324 | 70 . 140 110 . 126 109 . 240 240 240 . 243 324 Shots Fired 477 | 4 . 92 33 . 54 38 . 34 28 92 . 10 92 Gun 473 | 4 . 91 33 . 54 38 . 33 27 92 . 9 92 Cannon . | . . . . . . . . . . . . . . Launcher 2 | . . 1 . . . . . . 1 . . . . Special 2 | . . . . . . . . 1 . . . 1 . Kinetic 104 | 2 . 21 15 . 28 26 . 12 . . . . . Thermal 369 | 2 . 70 18 . 26 12 . 21 27 92 . 9 92 Explosive 2 | . . 1 . . . . . . 1 . . . . Electromagnetic . | . . . . . . . . . . . . . . Robot Hit Streak 21 | 3 . 12 8 . 9 18 . 17 16 21 . 5 12 Robot Miss Streak 5 | . . 3 1 . 2 2 . 2 4 5 . 3 2 Penetration Max . | . . . . . . . . . . . . . . Secondary Targets 8 | . . 3 . . 1 . . 1 . 1 . . 2 Max Gunslinging Chain 2 | . . 2 . . 1 . . 1 . 1 . . 1 Shots Hit Robots 375 | 3 . 57 27 . 34 26 . 29 25 88 . 9 77 Core Hits 220 | 2 . 29 10 . 15 10 . 15 20 75 . 3 41 Critical Kills . | . . . . . . . . . . . . . . Critical Parts Destroyed 1 | . . . . . . 1 . . . . . . . Critical Strikes 8 | . . 1 1 . . 1 . 1 . 1 . . 3 Burn 6 | . . 1 1 . . . . 1 . . . . 3 Destroy 1 | . . . . . . 1 . . . . . . . Sever 1 | . . . . . . . . . . 1 . . . Melee Attacks 10 | . . . . . . . . . . 8 . . 2 Impact . | . . . . . . . . . . . . . . Slashing 10 | . . . . . . . . . . 8 . . 2 Piercing . | . . . . . . . . . . . . . . Sneak Attacks 6 | . . . . . . . . . . 6 . . . Combat Hostiles . | . . . . . . . . . . . . . . Follow-up Attacks . | . . . . . . . . . . . . . . Damage Inflicted 7494 | 39 . 773 366 . 420 416 . 573 637 2208 . 197 1865 Guns 7118 | 39 . 728 364 . 408 416 . 573 618 1924 . 197 1851 Cannons . | . . . . . . . . . . . . . . Explosions 30 | . . 30 . . . . . . . . . . . Melee 275 | . . . . . . . . . . 275 . . . Ramming 71 | . . 15 2 . 12 . . . 19 9 . . 14 Kinetic 1027 | 26 . 213 183 . 198 262 . 145 . . . . . Thermal 6091 | 13 . 515 181 . 210 154 . 428 618 1924 . 197 1851 Explosive 30 | . . 30 . . . . . . . . . . . Electromagnetic . | . . . . . . . . . . . . . . Impact . | . . . . . . . . . . . . . . Slashing 275 | . . . . . . . . . . 275 . . . Piercing . | . . . . . . . . . . . . . . Highest Corruption . | . . . . . . . . . . . . . . Average Corruption . | . . . . . . . . . . . . . . Corruption Purged . | . . . . . . . . . . . . . . Corruption Blocked . | . . . . . . . . . . . . . . Overload Shots . | . . . . . . . . . . . . . . Overflow Damage 44 | . . . . . . . . . . 40 . . 4 Projectiles . | . . . . . . . . . . . . . . Explosions . | . . . . . . . . . . . . . . Melee 44 | . . . . . . . . . . 40 . . 4 Knockbacks 1 | . . . . . . . . . 1 . . . . Impact 1 | . . . . . . . . . 1 . . . . Kinetic . | . . . . . . . . . . . . . . Secondary . | . . . . . . . . . . . . . . Self-Inflicted Damage . | . . . . . . . . . . . . . . Shots . | . . . . . . . . . . . . . . Rammed 3 | . . 3 . . . . . . . . . . . Targets Rammed 11 | . . 3 1 . 2 . . . 2 2 . . 1 Kicked 8 | . . . 1 . 2 . . . 2 2 . . 1 Crushed . | . . . . . . . . . . . . . . Highest Temperature 435 | 18 . 345 45 . 162 45 . 108 51 129 . 174 435 Average Temperature 78 | 10 . 109 21 . 60 15 . 55 31 44 . 78 141 Received Heat Transfer 698 | . . 123 27 . 90 27 . 72 . 98 . 42 219 Effects 8 | . . . . . . . . . . . . . 8 Interference 6 | . . . . . . . . . . . . . 6 Short Circuit 1 | . . . . . . . . . . . . . 1 Damage (minor) 1 | . . . . . . . . . . . . . 1 Siege Activations . | . . . . . . . . . . . . . . Robots Corrupted . | . . . . . . . . . . . . . . Combat Hostiles . | . . . . . . . . . . . . . . Parts Fried . | . . . . . . . . . . . . . . Impact Corruptions 1 | . . . . . . . . . . . . . 1 Robots Melted 6 | . . . . . . . . . 2 2 . . 2 Combat Hostiles 6 | . . . . . . . . . 2 2 . . 2 Parts Melted 30 | . . 3 1 . 2 1 . . 2 10 . 2 9 Heat Transferred 13441 | 37 . 1460 531 . 592 333 . 1034 1400 4199 . 360 3495 Parts Sabotaged . | . . . . . . . . . . . . . . Parts Stolen . | . . . . . . . . . . . . . . Parts Stripped . | . . . . . . . . . . . . . . Power Chain Reactions . | . . . . . . . . . . . . . . Missiles Intercepted . | . . . . . . . . . . . . . . Alert | -11 -10 -9 -9 -9 -8 -8 -7 -7 -6 -6 -5 -5 -4 ------- Run | Scr Mat Mat Min Exi Min Mat Fac DSF Fac Ext Fac DSF Fac Peak Influence 908 | 5 9 365 137 . 110 158 . 165 431 781 382 323 908 Initial 382 | . 3 3 82 . . 42 . . 86 126 382 270 169 Average 240 | 1 8 150 133 . 38 91 . 94 262 534 382 306 637 Maximum Alert Level 3 | . . 1 . . . . . . 2 3 1 1 3 Low Security (%) 58 | 100 100 75 100 . 100 100 100 100 28 11 . . 7 Level 1 17 | . . 24 . . . . . . 42 15 100 100 13 Level 2 17 | . . . . . . . . . 28 58 . . 32 Level 3 5 | . . . . . . . . . . 15 . . 46 Level 4 . | . . . . . . . . . . . . . . Level 5 . | . . . . . . . . . . . . . . High Security . | . . . . . . . . . . . . . . Max Security . | . . . . . . . . . . . . . . Squads Dispatched 14 | . . 2 . . . . . 1 3 2 . . 6 Investigation 3 | . . . . . . . . . 1 1 . . 1 Extermination . | . . . . . . . . . . . . . . Reinforcement 9 | . . 2 . . . . . 1 2 . . . 4 Assault 2 | . . . . . . . . . . 1 . . 1 Garrison . | . . . . . . . . . . . . . . Intercept . | . . . . . . . . . . . . . . Searches Triggered . | . . . . . . . . . . . . . . Construction Impeded . | . . . . . . . . . . . . . . Haulers Reinforced 2 | . . . . . . . . . 1 . . . 1 Active Scanning Responses . | . . . . . . . . . . . . . . Cargo Convoy Interrupts . | . . . . . . . . . . . . . . Stealth | -11 -10 -9 -9 -9 -8 -8 -7 -7 -6 -6 -5 -5 -4 --------- Run | Scr Mat Mat Min Exi Min Mat Fac DSF Fac Ext Fac DSF Fac Distress Signals 6 | . . 1 . . . 1 . . . 3 . . 1 Communications Jammed . | . . . . . . . . . . . . . . Distress Signals . | . . . . . . . . . . . . . . Times Spotted 114 | . . 20 2 . 8 5 . 6 8 35 . 3 27 Peak Tracking Total 7 | . . 5 2 . 5 3 . 4 4 6 . 1 7 Tactical Retreats 3 | . . 1 . . . . . . . 1 . . 1 Traps | -11 -10 -9 -9 -9 -8 -8 -7 -7 -6 -6 -5 -5 -4 ------- Run | Scr Mat Mat Min Exi Min Mat Fac DSF Fac Ext Fac DSF Fac Traps Triggered 4 | . 2 . . . . . . 1 1 . . . . Indirectly . | . . . . . . . . . . . . . . Trap Hack Attempts . | . . . . . . . . . . . . . . Triggered . | . . . . . . . . . . . . . . Disarmed . | . . . . . . . . . . . . . . Reprogrammed . | . . . . . . . . . . . . . . Reused . | . . . . . . . . . . . . . . Traps Extracted . | . . . . . . . . . . . . . . Installed . | . . . . . . . . . . . . . . Triggered . | . . . . . . . . . . . . . . Machines | -11 -10 -9 -9 -9 -8 -8 -7 -7 -6 -6 -5 -5 -4 ---------- Run | Scr Mat Mat Min Exi Min Mat Fac DSF Fac Ext Fac DSF Fac Machines Disabled 3 | . . . . . . . . . 1 . . 1 1 Max in Single Turn 1 | . . . . . . . . . . . . 1 . Garrison Access 2 | . . . . . . . . . 1 . . . 1 Machines Sabotaged . | . . . . . . . . . . . . . . Garrisons Compromised . | . . . . . . . . . . . . . . Overloaded Fab Kills . | . . . . . . . . . . . . . . Hacking | -11 -10 -9 -9 -9 -8 -8 -7 -7 -6 -6 -5 -5 -4 --------- Run | Scr Mat Mat Min Exi Min Mat Fac DSF Fac Ext Fac DSF Fac Machines Accessed 18 | . 2 2 . 2 . 3 1 . 1 5 1 . 1 Terminals 13 | . 2 1 . . . 3 1 . . 5 1 . . Fabricators . | . . . . . . . . . . . . . . Repair Stations 1 | . . 1 . . . . . . . . . . . Recycling Units . | . . . . . . . . . . . . . . Scanalyzers . | . . . . . . . . . . . . . . Garrison Access 2 | . . . . . . . . . 1 . . . 1 Total Hacks 43 | . 3 8 . 2 . 14 1 . 1 11 1 . 2 Successful 24 | . 2 4 . 2 . 6 1 . 1 7 1 . . Failed 18 | . 1 3 . . . 8 . . . 4 . . 2 Catastrophic . | . . . . . . . . . . . . . . Database Lockouts 1 | . . 1 . . . . . . . . . . . Manual 24 | . 3 5 . 1 . 11 . . 1 2 . . 1 Terminals 35 | . 3 5 . . . 14 1 . . 11 1 . . Fabricators . | . . . . . . . . . . . . . . Repair Stations 3 | . . 3 . . . . . . . . . . . Recycling Units . | . . . . . . . . . . . . . . Scanalyzers . | . . . . . . . . . . . . . . Garrison Access 3 | . . . . . . . . . 1 . . . 2 Terminal Hacks 15 | . . 1 . 2 . 5 1 . . 5 1 . . Record 1 | . . . . 1 . . . . . . . . . Part Schematic 1 | . . . . . . 1 . . . . . . . Robot Analysis 1 | . . 1 . . . . . . . . . . . Prototype ID Bank 1 | . . . . . . . . . . 1 . . . Open Door 1 | . . . . . . . . . . 1 . . . Open DSF 2 | . . . . . . . 1 . . . 1 . . Terminal Index 1 | . . . . . . . . . . 1 . . . Unreport Threat 2 | . . . . . . 2 . . . . . . . Locate Traps 3 | . . . . . . 1 . . . 2 . . . Zone Layout 1 | . . . . . . 1 . . . . . . . EX-Prototype ID Bank 1 | . . . . 1 . . . . . . . . . Fabricator Hacks . | . . . . . . . . . . . . . . Repair Station Hacks 2 | . . 2 . . . . . . . . . . . Scan Component 1 | . . 1 . . . . . . . . . . . Repair 1 | . . 1 . . . . . . . . . . . Recycling Unit Hacks . | . . . . . . . . . . . . . . Scanalyzer . | . . . . . . . . . . . . . . Garrison Access Hacks . | . . . . . . . . . . . . . . Unauthorized Hacks 7 | . 2 1 . . . 1 . . 1 2 . . . Terminals 6 | . 2 1 . . . 1 . . . 2 . . . Botnet 5 | . 1 1 . . . 1 . . . 2 . . . Operators 1 | . 1 . . . . . . . . . . . . Fabricators . | . . . . . . . . . . . . . . Repair Stations . | . . . . . . . . . . . . . . Recycling Units . | . . . . . . . . . . . . . . Scanalyzers . | . . . . . . . . . . . . . . Garrison Access 1 | . . . . . . . . . 1 . . . . Jam 1 | . . . . . . . . . 1 . . . . Data Cores Recovered . | . . . . . . . . . . . . . . Used . | . . . . . . . . . . . . . . Hacking Detections 12 | . 1 2 . . . 3 . . . 5 . . 1 Full Trace Events 1 | . . . . . . . . . . . . . 1 Feedback Events . | . . . . . . . . . . . . . . Feedback Blocked . | . . . . . . . . . . . . . . Robot Schematics Acquired . | . . . . . . . . . . . . . . Robots Built . | . . . . . . . . . . . . . . Authchips . | . . . . . . . . . . . . . . Time . | . . . . . . . . . . . . . . Total Robot Build Rating . | . . . . . . . . . . . . . . Part Schematics Acquired 1 | . . . . . . 1 . . . . . . . Parts Built . | . . . . . . . . . . . . . . Authchips . | . . . . . . . . . . . . . . Time . | . . . . . . . . . . . . . . Total Part Build Rating . | . . . . . . . . . . . . . . Parts Repaired 1 | . . 1 . . . . . . . . . . . Time 26 | . . 26 . . . . . . . . . . . Parts Recycled . | . . . . . . . . . . . . . . Recycled Matter . | . . . . . . . . . . . . . . Retrieved Matter . | . . . . . . . . . . . . . . Retrieved Components . | . . . . . . . . . . . . . . Parts Scanalyzed . | . . . . . . . . . . . . . . Part Schematics Acquired . | . . . . . . . . . . . . . . Parts Damaged . | . . . . . . . . . . . . . . Bothacking | -11 -10 -9 -9 -9 -8 -8 -7 -7 -6 -6 -5 -5 -4 ------------ Run | Scr Mat Mat Min Exi Min Mat Fac DSF Fac Ext Fac DSF Fac Used RIF Installer . | . . . . . . . . . . . . . . Robots Hacked . | . . . . . . . . . . . . . . Non-combat . | . . . . . . . . . . . . . . Combat . | . . . . . . . . . . . . . . Robot Hacks Applied . | . . . . . . . . . . . . . . Relay Couplers Released . | . . . . . . . . . . . . . . Fabnet Peak Effective % . | . . . . . . . . . . . . . . Robots Rewired 9 | . . . . . . . . . . 9 . . . Allies Hacked . | . . . . . . . . . . . . . . Hacks Repelled . | . . . . . . . . . . . . . . Allies | -11 -10 -9 -9 -9 -8 -8 -7 -7 -6 -6 -5 -5 -4 -------- Run | Scr Mat Mat Min Exi Min Mat Fac DSF Fac Ext Fac DSF Fac Total Allies 15 | . . . . . . . . 1 3 10 . 1 . Largest Group 9 | . . . . . . . . 1 4 9 5 6 5 Highest-Rated Group 403 | . . . . . . . . 90 183 403 146 283 252 Highest-Rated Ally 159 | . . . . . . . . 90 90 159 39 137 137 Total Orders . | . . . . . . . . . . . . . . Ally Attacks 191 | . . . . . . . . 12 26 101 . 6 46 Total Damage 5676 | . . . . . . . . 392 413 2620 . 100 2151 Kills 45 | . . . . . . . . 3 2 24 . 1 15 Allies Corrupted . | . . . . . . . . . . . . . . Allies Melted . | . . . . . . . . . . . . . . Field Lobotomies 2 | . . . . . . . . 1 . . . 1 . Intel | -11 -10 -9 -9 -9 -8 -8 -7 -7 -6 -6 -5 -5 -4 ------- Run | Scr Mat Mat Min Exi Min Mat Fac DSF Fac Ext Fac DSF Fac Robot Analysis Total 1 | . . 1 . . . . . . . . . . . Derelict Logs Recovered . | . . . . . . . . . . . . . . Drone Launches . | . . . . . . . . . . . . . . Drone Recoveries . | . . . . . . . . . . . . . . Exploration | -11 -10 -9 -9 -9 -8 -8 -7 -7 -6 -6 -5 -5 -4 ------------- Run | Scr Mat Mat Min Exi Min Mat Fac DSF Fac Ext Fac DSF Fac Turns Passed 5456 | 95 199 573 247 648 935 252 97 265 602 1042 9 243 249 Spaces Moved 2900 | 50 122 246 96 341 335 147 78 141 446 625 5 163 105 Core 4 | 4 . . . . . . . . . . . . . Treads 432 | 46 122 246 18 . . . . . . . . . . Legs 2464 | . . . 78 341 335 147 78 141 446 625 5 163 105 Wheels . | . . . . . . . . . . . . . . Hover . | . . . . . . . . . . . . . . Flight . | . . . . . . . . . . . . . . Fastest Speed 50 | 50 160 160 160 190 190 120 120 107 110 124 123 118 116 Average Speed 145 | 151 160 160 184 190 190 120 120 131 118 124 123 118 117 Slowest Speed 190 | 160 160 160 190 190 190 120 120 187 188 124 123 123 118 Overloaded Moves . | . . . . . . . . . . . . . . Propulsion Burnouts . | . . . . . . . . . . . . . . Robots Hopped . | . . . . . . . . . . . . . . Cave-ins Triggered . | . . . . . . . . . . . . . . Exploration Rate (%) 39 | 4 36 33 26 69 45 21 3 92 14 68 . 92 4 Regions Visited 13 Branch Regions 4 Pre-discovered Areas 1 | . . . . 1 . . . . . . . . . Known Exits Taken 2 | . . . . . . . 1 . . . 1 . . Unknown Exits Taken 9 | 1 1 1 1 1 1 1 . . 1 1 . . . Scrap Searched . | . . . . . . . . . . . . . . Spaces Dug 8 | . . . . . . . . . 4 2 . . 2 Terrain Destroyed 15 | . . 7 . . . . . . 4 2 . . 2 Melee 4 | . . . . . . . . . . 2 . . 2 Projectile . | . . . . . . . . . . . . . . AOE 11 | . . 7 . . . . . . 4 . . . . Terrain Rammed . | . . . . . . . . . . . . . . Walls Destroyed . | . . . . . . . . . . . . . . Machines Disabled . | . . . . . . . . . . . . . . Actions | -11 -10 -9 -9 -9 -8 -8 -7 -7 -6 -6 -5 -5 -4 --------- Run | Scr Mat Mat Min Exi Min Mat Fac DSF Fac Ext Fac DSF Fac Total 3781 | 62 126 356 139 342 594 197 81 197 495 796 7 215 174 Wait 359 | . . 29 6 . 235 16 . . 7 27 . 27 12 Move 2887 | 49 121 245 95 340 334 146 77 140 445 624 4 162 105 Hop . | . . . . . . . . . . . . . . Pick Up 67 | 4 3 19 4 1 . 4 2 10 5 6 . 5 4 Fast Attach 23 | 7 . 2 2 . 1 3 . 2 4 . . . 2 Attach 23 | . . 4 2 . . 2 2 3 1 1 2 . 6 Detach 1 | . . . . . . . . . 1 . . . . Swap 66 | . 1 8 4 . 2 4 . 12 9 7 1 8 10 Drop 91 | . 1 14 10 1 2 9 . 17 11 10 . 9 7 Fire 163 | 2 . 32 15 . 18 13 . 12 10 32 . 4 25 Melee 10 | . . . . . . . . . . 8 . . 2 Ram . | . . . . . . . . . . . . . . Kick 8 | . . . 1 . 2 . . . 2 2 . . 1 Crush 3 | . . 3 . . . . . . . . . . . Escape Stasis . | . . . . . . . . . . . . . . Rewire 80 | . . . . . . . . 1 . 79 . . . Trap . | . . . . . . . . . . . . . . Miscellaneous . | . . . . . . . . . . . . . . Route ------- -11/Scrapyard -10/Materials -9/Materials -9/Mines -9/Exiles -8/Mines -8/Materials -7/Factory -7/DSF -6/Factory -6/Extension (discovered 2 exits: *Fac / [*Cet]) -5/Factory -5/DSF -4/Factory History --------- Turn | Location | Event 8 | -11/Scrapyard | Discovered new exit (range 15) 96 | -11/Scrapyard | Entered Materials 281 | -10/Materials | Discovered new exit (range 4) 295 | -10/Materials | Entered another Materials area 295 | -9/Materials | Evolved 2 slots: Utility x1, Weapon x1 306 | -9/Materials | Build established: Mutant 471 | -9/Materials | Repaired Assault Rifle 561 | -9/Materials | Central database locked down 844 | -9/Materials | Discovered new exit (range 9) 868 | -9/Materials | Entered Mines 983 | -9/Mines | YI-UF0 nonchalantly dropped a Grenade Launcher on the ground 1051 | -9/Mines | Destroyed YI-UF0 1079 | -9/Mines | Found Prototype Launcher 1079 | -9/Mines | Identified YI-UF0's Doublenader 1108 | -9/Mines | Deemed a non-threat by the Exiles lab entrance 1108 | -9/Mines | Discovered new exit (range 5) 1115 | -9/Mines | Entered Exiles 1163 | -9/Exiles | Met 8R-AWN 1193 | -9/Exiles | Met EX-HEX 1281 | -9/Exiles | Met EX-DEC 1313 | -9/Exiles | Met EX-BIN 1343 | -9/Exiles | Learned location of Zion (-7) 1389 | -9/Exiles | Build established: Tank 1507 | -9/Exiles | Aligned with FarCom system 1509 | -9/Exiles | Given EX-Vault access code 1556 | -9/Exiles | Opened EX-Vault 1572 | -9/Exiles | Found Field Lobotomy Kit 1613 | -9/Exiles | Warned to stay clear of 0b10 Research branches 1738 | -9/Exiles | Discovered new exit (range 15) 1763 | -9/Exiles | Left Exiles lab with Field Lobotomy Kit 1763 | -9/Exiles | Entered Mines 2060 | -8/Mines | Build established: Skirmisher 2654 | -8/Mines | Discovered new exit (range 6) 2698 | -8/Mines | Entered Materials 2698 | -8/Materials | Evolved 2 slots: Propulsion x1, Utility x1 2914 | -8/Materials | Discovered new exit (range 15) 2950 | -8/Materials | Entered Factory 2950 | -7/Factory | Evolved 2 slots: Propulsion x1, Utility x1 3047 | -7/Factory | Identified exit to DSF 3047 | -7/Factory | Entered DSF 3092 | -7/DSF | Additional patrols routed to DSF 3093 | -7/DSF | Assimilated H-61 Shepherd with FLK Orb 3256 | -7/DSF | Discovered new exit (range 16) 3312 | -7/DSF | Entered Factory 3312 | -6/Factory | Accompanied by 1 ally 3312 | -6/Factory | Evolved 2 slots: Propulsion x1, Utility x1 3401 | -6/Factory | Allied Derelicts emerged from ambush trap array 3907 | -6/Factory | Discovered new exit (range 7) 3914 | -6/Factory | Entered Extension 4101 | -6/Extension | Rescued A7 4264 | -6/Extension | First assault squad dispatched 4715 | -6/Extension | Spotted B-75 Beast 4729 | -6/Extension | Destroyed B-75 Beast 4739 | -6/Extension | Disrupted transfer network 4741 | -6/Extension | Spotted B-75 Beast 4754 | -6/Extension | Destroyed B-75 Beast 4891 | -6/Extension | Discovered new exit (range 15) 4892 | -6/Extension | Discovered new exit (range 15) 4927 | -6/Extension | Destroyed A7 4932 | -6/Extension | Extracted ID and sensor layout for unrecognized location from A7's data core 4956 | -6/Extension | Entered Factory 4956 | -5/Factory | Accompanied by 5 allies 4956 | -5/Factory | Evolved 2 slots: Propulsion x1, Utility x1 4965 | -5/Factory | Identified exit to DSF 4965 | -5/Factory | Entered DSF 4965 | -5/DSF | Accompanied by 5 allies 4995 | -5/DSF | Assimilated H-71 Marshal with FLK Orb 5015 | -5/DSF | Discovered new exit (range 15) 5208 | -5/DSF | Entered Factory 5208 | -4/Factory | Accompanied by 5 allies 5208 | -4/Factory | Evolved 2 slots: Power x1, Weapon x1 5254 | -4/Factory | Build established: Scavenger-Tank 5457 | -4/Factory | Self-destructed Last Messages --------------- area. 05408_ K-01 Serf collects debris. 05408_ Acquired 10 matter. 05409_ Slug penetrates Marshal 6a. 05409_ Marshal 6a destroyed. 05422_ Dropped Hrd. Heavy Armor Plating. 05424_ Acquired Hrd. Heavy Armor Plating. 05448_ Dropped Graphene Brace. 05448_ Acquired Prototype Processor. 05448_ Identified Exp. Optical Array. 05448_ Malfunction: Meltdown. 05448_ Imp. Utility Shielding damaged (-32). 05448_ Wave Gun damaged (-16). 05448_ Adv. VSS Leg damaged (-26). 05450_ Slug penetrates Wall. 05451_ Acquired Graphene Brace. 05453_ Slug penetrates Wall. 05456_ Penetrated by Slug. 05456_ Slug penetrates Wall. 05456_ Wave Gun destroyed. Map ----- +----------------------------------------------------+ | | | | | | | | | | | | | | | | | | | | | | | | | | | | | | | | | ????????????????????????????????????????#######??? | | ???????????????????????????????????????? #?? | | ???????????????????????????????????????# #?? | | ???????????????????????????????????????# #?? | | ???????????????????????????????????????# #?? | | ?????????????????????????############### #?? | | ?????????????????????????# # # #?? | | ?????????????????????????# ; # ! #?? | | ????????????###+########## # """" # #?? | | ????????????# @ # """" # !] #?? | | ????????????# ^ # # """" # % !] #?? | | ????????##??# """ # # """" # !] #?? | | ??? ### ### """ #!! # """" # #?? | | !! """ #! # h"""" #?? | | ? # ! #!! # h # ### | | #+#### "G"" ^] ##########+######+#####%# | | " " ^^] ![!%[%=%! | | ]] % % % =%*!%![[%= | | % % ! !% =%%%%%=%! | | % C [= =*[%%%%| | | o % !%[ %=%%%%% | | ###### % % ##########+######+#############+ | | ?????# #???????? ??? =[! ???### ! | | ????# !!! #???????? ??# """ ???? "" | | ""??# !!! #???????? ??# """ // ??# "" | | S" # !!! !!!#??????? ??# """ // #?# "" | | + !!!#??????? ??# / #?# "" | | # !!!#??????? ??# """ #?# "" | | ???# #??????? ??# """ #?# "" | | ?????# #?????? ??#????? ?# "" | | ?????#### #??????" """???????? ### ? | | ????????# """" #????????????????????##??######? | | ????????# """" +?????????????????????????????? | | ????????# """" ##?????????????????????????????? | +----------------------------------------------------+ Best States ------------- Heat Dissipation 112 Energy Generation 29 Energy Capacity 340 Matter Stores 300 Matter Capacity 300 Sight Range 16 Terrain Scan Density 10 Armor Coverage 825 Resistance: TH 15 Resistance: EM 15 Utility Shielding 66 Evasion (%) 55 Targeting Accuracy 8 Recoil Reduction 2 Defensive Hacking 10 Item Schematics ----------------- Arm. Treads | -8/Materials | Hacked Robot Schematics ------------------ None Fabricated ------------ Nothing Alien Tech Used ----------------- None Achievements -------------- None Challenges ------------ None Game ------ Seed DerelictNovaMinigun Manual? 0 Play Time 00:37:39 Cumulative 724.8 hours Start 2022.04.17 @ 12:10:47 End 2022.04.17 @ 12:49:25 Sessions 1 Manual Loads 0 Difficulty Rogue Special Mode None Game No. 1105 Rogue 1105 Adventurer 0 Explorer 0 Win Type - Total 69 Types 41/1/10/12/4/0/0/1/0 Lore% 91 Gallery% 90 Achievement% 83 Wizard Run 0 Options --------- ASCII 1 Keyboard 0 Movement Numpad Keybinds 0 Fullscreen 0 Font 14/SmallcapsGlow Map View 76x50 Tactical HUD 1 Map Filters NONE Filters NONE Steam 1 RUN: b21c6761-a115-4515-9fb4-def1724d6d8a